[Event "FIDE WSTC Open 50 2025"]
[Site "Prague"]
[Date "2025.02.23"]
[Round "6.20"]
[White "Kindt, Manfred"]
[Black "Hulme, William"]
[Result "1/2-1/2"]
[Annotator "NA"]
[ECO "C55"]
[WhiteElo "2049"]
[BlackElo "1909"]
[PlyCount "41"]
[EventDate "2025.02.17"]
[EventType "team-tourn"]
[EventCountry "CZE"]
[SourceTitle "playchess.com"]
[Source "ChessBase"]
[SourceQuality "1"]
[TimeControl "40/5400+30:1800+30"]

1. e4 {[%emt 0:00:03]} e5 {[%emt 0:00:15]} 2. Nf3 {[%emt 0:00:08]} Nc6 {[%emt 0:00:11]} 3. d4 {[%emt 0:00:09]} exd4 {[%emt 0:00:06]} 4. Bc4 {[%emt 0:00:06]} Nf6 {[%emt 0:00:35]} 5. e5 {[%emt 0:00:16]} d5 {[%emt 0:00:13]} 6. Bb5 {[%emt 0:00:08]} Ne4 {[%emt 0:00:10]} 7. Nxd4 {[%emt 0:00:13]} Bd7 {[%emt 0:00:36]} 8. Bxc6 {[%emt 0:00:19]} bxc6 {[%emt 0:00:10]} 9. O-O {[%emt 0:00:14]} Bc5 {[%emt 0:00:57]} 10. f3 {[%emt 0:00:27]} Ng5 {[%emt 0:00:28]} 11. f4 {[%emt 0:00:27]} Ne4 {[%emt 0:00:27]} 12. Be3 {[%emt 0:00:41]} Bb6 {[%emt 0:01:12]} 13. Nd2 {[%emt 0:00:42]} Nxd2 {[%emt 0:01:12]} 14. Qxd2 {[%emt 0:00:13]} c5 {[%emt 0:01:24]} 15. Nf3 {[%emt 0:00:13]} Bf5 {[%emt 0:08:18]} 16. c3 {[%emt 0:02:40]} O-O {[%emt 0:06:13]} 17. a4 {[%emt 0:03:16]} a5 {[%emt 0:00:20]} 18. Rad1 {[%emt 0:12:49]} c6 {[%emt 0:04:01]} 19. Qf2 {[%emt 0:08:55]} Qe7 {[%emt 0:00:54]} 20. h3 {[%emt 0:02:50]} h6 {[%emt 0:03:42]} 21. Kh2 {[%emt 0:09:21]} 1/2-1/2

[Event "FIDE WSTC Open 50 2025"]
[Site "Prague"]
[Date "2025.02.23"]
[Round "6.21"]
[White "Schulenburg, Bernd"]
[Black "Polak, Tomas"]
[Result "0-1"]
[Annotator "TA"]
[ECO "B51"]
[WhiteElo "2144"]
[BlackElo "2463"]
[PlyCount "48"]
[EventDate "2025.02.17"]
[EventType "team-tourn"]
[EventCountry "CZE"]
[SourceTitle "playchess.com"]
[Source "ChessBase"]
[SourceQuality "1"]
[TimeControl "40/5400+30:1800+30"]

{[%evp 15,48,16,21,-19,0,0,5,-8,6,-1,0,-10,-24,-28,-8,-6,-4,-2,-6,-10,-4,-46,-57,-46,-50,-81,-77,-139,-147,-136,-131,-170,-186,-377,-372]} 1. e4 {[%emt 0:00:04]} c5 {[%emt 0:00:09]} 2. Nf3 {[%emt 0:00:15]} d6 {[%emt 0:00:11]} 3. Bb5+ {[%emt 0:00:49]} Nc6 {[%emt 0:01:33]} 4. O-O {[%emt 0:00:17]} Bd7 {[%emt 0:00:28]} 5. Re1 {[%emt 0:05:56]} Nf6 {[%emt 0:02:42]} 6. c3 {[%emt 0:03:24]} a6 {[%emt 0:00:12]} 7. Bf1 {[%emt 0:00:07]} Bg4 {[%emt 0:00:34]} 8. d3 {[%emt 0:03:13]} e6 {[%emt 0:01:07]} 9. Bg5 {[%emt 0:04:59] B51: Sicilian: Moscow Variation (3 Bb5+) without 3...Bd7.} Be7 {[%emt 0:00:55]} 10. Nbd2 {[%emt 0:00:15]} O-O {[%emt 0:00:45]} 11. a4 {[%emt 0:02:41] The position is equal.} d5 {[%emt 0:15:00]} 12. Be2 $146 {[%emt 0:07:51]} ({Predecessor:} 12. h3 Bh5 13. e5 Nd7 14. Bxe7 Qxe7 15. Qb3 b6 16. Re3 f6 17. exf6 Rxf6 18. Rae1 {1-0 Studer,N (2021)-Grillon,C (1678) SUI-ch U14 Belp 2010 (1)}) 12... Rc8 {[%emt 0:04:12]} 13. Qc2 {[%emt 0:03:41]} h6 {[%emt 0:05:55]} 14. Bh4 {[%emt 0:06:29]} Bh5 {[%emt 0:02:23]} 15. Bg3 {[%emt 0:03:37]} Bg6 {[%emt 0:05:24]} 16. Ne5 {[%emt 0:01:42]} Nxe5 {[%emt 0:07:53]} 17. Bxe5 {[%emt 0:00:07]} Bd6 {[%emt 0:01:19]} 18. Bg3 {[%emt 0:01:04]} Bxg3 {[%emt 0:04:55]} 19. hxg3 {[%emt 0:00:07] [#]} c4 $1 {[%emt 0:04:13]} 20. Rad1 {[%emt 0:08:38]} (20. a5 Qe7) 20... Qb6 {[%emt 0:02:13]} 21. Qc1 {[%emt 0:10:14] [#]} ({Better is} 21. dxc4 dxe4 22. Qb3 Qxb3 23. Nxb3) 21... cxd3 $1 $17 {[%emt 0:02:23] Black is much more active.} (21... dxe4 22. Nxc4 Qb3 23. Nd6 $15) 22. Bxd3 {[%emt 0:00:09][%cal Oa4a5]} Ng4 {[%emt 0:00:16]} 23. Re2 {[%emt 0:00:12]} Ne5 {[%emt 0:02:05]} 24. Re3 {[%emt 0:02:48]} (24. a5 {was worth a try.} Qxa5 25. Bb1) 24... d4 {[%emt 0:02:14] Weighted Error Value: White=0.36/Black=0.04 (flawless)   Mistake:       	White=2     	---        Inaccurate:     	White=2     	---        OK:         	White=4     	Black=9      Strong:       	---       	Black=1} 0-1

[Event "FIDE WSTC Open 50 2025"]
[Site "Prague"]
[Date "2025.02.23"]
[Round "6.22"]
[White "Obsivac, Josef"]
[Black "Berndt, Matthias"]
[Result "1-0"]
[Annotator "RC"]
[ECO "A05"]
[WhiteElo "2262"]
[BlackElo "2072"]
[PlyCount "81"]
[EventDate "2025.02.17"]
[EventType "team-tourn"]
[EventCountry "CZE"]
[SourceTitle "playchess.com"]
[Source "ChessBase"]
[SourceQuality "1"]
[TimeControl "40/5400+30:1800+30"]

1. Nf3 {[%emt 0:00:04]} Nf6 {[%emt 0:00:07]} 2. c4 {[%emt 0:00:13]} c5 {[%emt 0:00:35]} 3. g3 {[%emt 0:00:31]} g6 {[%emt 0:00:37]} 4. Bg2 {[%emt 0:00:19]} Bg7 {[%emt 0:00:09]} 5. O-O {[%emt 0:00:52]} O-O {[%emt 0:00:08]} 6. d4 {[%emt 0:00:46]} cxd4 {[%emt 0:03:57]} 7. Nxd4 Nc6 {[%emt 0:00:20]} 8. Nc3 {[%emt 0:10:17]} a6 {[%emt 0:02:17]} 9. c5 {[%emt 0:10:30]} Qc7 {[%emt 0:05:13]} 10. Nb3 {[%emt 0:01:23]} Rd8 {[%emt 0:05:59]} 11. Bf4 {[%emt 0:02:05]} d6 {[%emt 0:04:12]} 12. cxd6 {[%emt 0:01:02]} exd6 {[%emt 0:00:22]} 13. Bg5 {[%emt 0:06:16]} Be6 {[%emt 0:01:23]} 14. Ne4 {[%emt 0:13:00]} Qe7 {[%emt 0:04:08]} 15. Rc1 {[%emt 0:12:29]} Rac8 {[%emt 0:08:49]} 16. Rc3 {[%emt 0:07:08]} h6 {[%emt 0:10:14]} 17. Bxf6 {[%emt 0:00:29]} Bxf6 {[%emt 0:00:08]} 18. Nxf6+ {[%emt 0:00:10]} Qxf6 {[%emt 0:00:03]} 19. Qd2 {[%emt 0:00:51]} Kg7 {[%emt 0:01:18]} 20. Rd1 {[%emt 0:01:26]} Bf5 {[%emt 0:07:53]} 21. Rdc1 {[%emt 0:04:02]} d5 {[%emt 0:04:28]} 22. Nc5 {[%emt 0:04:39]} Nb4 {[%emt 0:07:38]} 23. Nxb7 {[%emt 0:03:27]} Nxa2 {[%emt 0:01:19]} 24. Rxc8 {[%emt 0:02:35]} Bxc8 {[%emt 0:00:43]} 25. Nxd8 {[%emt 0:02:34]} Nxc1 {[%emt 0:00:15]} 26. Qxc1 {[%emt 0:00:12]} Qxd8 {[%emt 0:00:11]} 27. e3 {[%emt 0:04:09]} Bb7 {[%emt 0:02:11]} 28. Qc3+ {[%emt 0:00:38]} Qf6 {[%emt 0:00:33]} 29. Qxf6+ {[%emt 0:02:44]} Kxf6 {[%emt 0:00:02]} 30. b4 {[%emt 0:00:32]} Ke5 {[%emt 0:00:29]} 31. Kf1 {[%emt 0:00:33]} Bc6 {[%emt 0:00:07]} 32. Ke1 {[%emt 0:00:21]} g5 {[%emt 0:02:30]} 33. f4+ {[%emt 0:00:49]} gxf4 {[%emt 0:01:02]} 34. gxf4+ {[%emt 0:00:05]} Kd6 {[%emt 0:00:53]} 35. Kd2 {[%emt 0:00:54]} f6 {[%emt 0:01:08]} 36. Bf1 {[%emt 0:01:03]} Bb7 {[%emt 0:00:07]} 37. Kc3 {[%emt 0:00:28]} Bc8 {[%emt 0:00:13]} 38. Kd4 {[%emt 0:00:12]} Bb7 {[%emt 0:00:08]} 39. Bh3 {[%emt 0:03:12]} Bc6 {[%emt 0:00:30]} 40. Bc8 {[%emt 0:01:53]} Bb5 {[%emt 0:00:02]} 41. Bb7 {[%emt 0:32:04]} 1-0

[Event "FIDE WSTC Open 50 2025"]
[Site "Prague"]
[Date "2025.02.23"]
[Round "6.23"]
[White "Kuna, Ralf-Michael"]
[Black "Holemar, David"]
[Result "0-1"]
[Annotator "RC"]
[ECO "B40"]
[WhiteElo "2072"]
[BlackElo "2150"]
[PlyCount "66"]
[EventDate "2025.02.17"]
[EventType "team-tourn"]
[EventCountry "CZE"]
[SourceTitle "playchess.com"]
[Source "ChessBase"]
[SourceQuality "1"]
[TimeControl "40/5400+30:1800+30"]

1. e4 {[%emt 0:00:07]} c5 {[%emt 0:00:04]} 2. Nf3 {[%emt 0:00:08]} e6 {[%emt 0:00:05]} 3. c3 {[%emt 0:03:24]} d5 {[%emt 0:02:29]} 4. exd5 {[%emt 0:01:24]} Qxd5 {[%emt 0:02:55]} 5. d4 {[%emt 0:03:16]} Nc6 {[%emt 0:01:24]} 6. Be3 {[%emt 0:01:23]} cxd4 {[%emt 0:01:12]} 7. Nxd4 {[%emt 0:00:30]} Nxd4 {[%emt 0:06:14]} 8. Qxd4 {[%emt 0:00:26]} Nf6 {[%emt 0:01:11]} 9. Nd2 {[%emt 0:09:56]} Be7 {[%emt 0:04:12]} 10. Qxd5 {[%emt 0:23:21]} Nxd5 {[%emt 0:00:15]} 11. Bb5+ {[%emt 0:00:20]} Bd7 {[%emt 0:07:04]} 12. Bxd7+ {[%emt 0:00:30]} Kxd7 {[%emt 0:00:03]} 13. Ke2 {[%emt 0:00:16]} e5 {[%emt 0:07:37]} 14. c4 {[%emt 0:04:33]} Nxe3 {[%emt 0:01:27]} 15. fxe3 {[%emt 0:00:02]} f5 {[%emt 0:02:14]} 16. Rad1 {[%emt 0:02:43]} Ke6 {[%emt 0:00:34]} 17. Nb1 {[%emt 0:02:05]} Rac8 {[%emt 0:00:47]} 18. b3 {[%emt 0:01:00]} g5 {[%emt 0:11:37]} 19. Rd5 {[%emt 0:08:07]} Rhd8 {[%emt 0:06:56]} 20. Rhd1 {[%emt 0:04:28]} Rxd5 {[%emt 0:00:16]} 21. Rxd5 {[%emt 0:01:07]} a6 {[%emt 0:01:29]} 22. a4 {[%emt 0:04:45]} Bb4 {[%emt 0:03:36]} 23. Nd2 {[%emt 0:02:13]} g4 {[%emt 0:02:46]} 24. Nf1 {[%emt 0:07:52]} h5 {[%emt 0:01:44]} 25. e4 {[%emt 0:03:01]} f4 {[%emt 0:02:37]} 26. Rd3 {[%emt 0:03:49]} Bc5 {[%emt 0:07:49]} 27. Nd2 {[%emt 0:01:03]} Bg1 {[%emt 0:00:44]} 28. h3 {[%emt 0:01:18]} Bc5 {[%emt 0:08:26]} 29. Kf1 {[%emt 0:03:04]} Rg8 {[%emt 0:01:36]} 30. Nb1 {[%emt 0:00:45]} f3 {[%emt 0:02:32]} 31. hxg4 {[%emt 0:00:46]} fxg2+ {[%emt 0:00:18]} 32. Kxg2 {[%emt 0:02:26]} Rxg4+ {[%emt 0:00:04]} 33. Kf1 {[%emt 0:02:21]} Rg1+ {[%emt 0:00:11]} 0-1

[Event "FIDE WSTC Open 50 2025"]
[Site "Prague"]
[Date "2025.02.23"]
[Round "6.24"]
[White "Skacelik, Petr"]
[Black "Haentsch, Ralf"]
[Result "1/2-1/2"]
[Annotator "RC"]
[ECO "E34"]
[WhiteElo "2132"]
[BlackElo "2087"]
[PlyCount "73"]
[EventDate "2025.02.17"]
[EventType "team-tourn"]
[EventCountry "CZE"]
[SourceTitle "playchess.com"]
[Source "ChessBase"]
[SourceQuality "1"]
[TimeControl "40/5400+30:1800+30"]

1. d4 {[%emt 0:01:05]} Nf6 {[%emt 0:00:03]} 2. c4 {[%emt 0:00:07]} e6 {[%emt 0:00:23]} 3. Nc3 {[%emt 0:00:16]} Bb4 {[%emt 0:00:29]} 4. Qc2 {[%emt 0:00:21]} d5 {[%emt 0:00:58]} 5. cxd5 {[%emt 0:00:24]} Qxd5 {[%emt 0:01:43]} 6. Nf3 {[%emt 0:03:59]} Qf5 {[%emt 0:02:41]} 7. Qb3 {[%emt 0:01:33]} Nc6 {[%emt 0:01:20]} 8. e3 {[%emt 0:02:40]} a5 {[%emt 0:03:52]} 9. Bd2 {[%emt 0:03:46]} O-O {[%emt 0:02:23]} 10. a3 {[%emt 0:10:21]} Bd6 {[%emt 0:09:02]} 11. Be2 {[%emt 0:05:30]} e5 {[%emt 0:25:21]} 12. d5 {[%emt 0:17:25]} Ne7 {[%emt 0:02:30]} 13. h3 {[%emt 0:04:13]} c6 {[%emt 0:09:12]} 14. g4 {[%emt 0:00:41]} Qd7 {[%emt 0:07:38]} 15. e4 {[%emt 0:02:27]} cxd5 {[%emt 0:05:30]} 16. exd5 {[%emt 0:00:14]} a4 {[%emt 0:04:54]} 17. Qa2 {[%emt 0:00:14]} Bc7 {[%emt 0:01:32]} 18. Bb5 {[%emt 0:06:38]} Qd6 {[%emt 0:00:58]} 19. Bc4 {[%emt 0:00:07]} Ba5 {[%emt 0:02:58]} 20. Rd1 {[%emt 0:09:30]} Bd7 {[%emt 0:04:21]} 21. g5 {[%emt 0:04:01]} Nh5 {[%emt 0:01:04]} 22. Ne4 {[%emt 0:03:32]} Bxd2+ {[%emt 0:00:30]} 23. Rxd2 {[%emt 0:00:24]} Qb8 {[%emt 0:01:29]} 24. Nc5 {[%emt 0:05:18]} Bf5 {[%emt 0:01:32]} 25. d6 {[%emt 0:05:06]} Nc6 {[%emt 0:02:34]} 26. Nh4 {[%emt 0:00:47]} Ra5 {[%emt 0:01:25]} 27. Nxf5 {[%emt 0:04:49]} Rxc5 {[%emt 0:00:21]} 28. Ne7+ {[%emt 0:04:24]} Kh8 {[%emt 0:01:05]} 29. Kd1 {[%emt 0:02:22]} f6 {[%emt 0:01:57]} 30. g6 {[%emt 0:00:30]} Nf4 {[%emt 0:01:23]} 31. Bf7 {[%emt 0:00:20]} h6 {[%emt 0:01:16]} 32. Nxc6 {[%emt 0:01:13]} Rxc6 {[%emt 0:00:36]} 33. d7 {[%emt 0:00:13]} Qc7 {[%emt 0:00:58]} 34. Qb1 {[%emt 0:00:22]} Rd8 {[%emt 0:00:14]} 35. Be8 {[%emt 0:00:04]} Rd6 {[%emt 0:01:26]} 36. Qc2 {[%emt 0:00:23]} Rc6 {[%emt 0:01:25]} 37. Qb1 {[%emt 0:00:07]} 1/2-1/2

[Event "FIDE WSTC Open 50 2025"]
[Site "Prague"]
[Date "2025.02.23"]
[Round "6.25"]
[White "Jirovsky, Milos"]
[Black "Gronn, Atle"]
[Result "0-1"]
[Annotator "RC"]
[ECO "D30"]
[WhiteElo "2410"]
[BlackElo "2366"]
[PlyCount "52"]
[EventDate "2025.02.17"]
[EventType "team-tourn"]
[EventCountry "CZE"]
[SourceTitle "playchess.com"]
[Source "ChessBase"]
[SourceQuality "1"]
[TimeControl "40/5400+30:1800+30"]

1. Nf3 {[%emt 0:00:02]} d5 {[%emt 0:00:15]} 2. d4 {[%emt 0:00:07]} Nf6 {[%emt 0:00:15]} 3. c4 {[%emt 0:00:14]} c6 {[%emt 0:00:55]} 4. e3 {[%emt 0:00:38]} e6 {[%emt 0:00:56]} 5. Nbd2 {[%emt 0:00:26]} Nbd7 {[%emt 0:05:11]} 6. Bd3 {[%emt 0:00:20]} Bd6 {[%emt 0:01:06]} 7. O-O {[%emt 0:00:32]} O-O {[%emt 0:00:21]} 8. Re1 {[%emt 0:01:49]} e5 {[%emt 0:08:13]} 9. cxd5 {[%emt 0:03:01]} cxd5 {[%emt 0:00:19]} 10. e4 {[%emt 0:04:14]} h6 {[%emt 0:16:50]} 11. exd5 {[%emt 0:07:03]} exd4 {[%emt 0:01:08]} 12. Ne4 {[%emt 0:01:28]} Bb4 {[%emt 0:02:04]} 13. Bd2 {[%emt 0:00:58]} Nxd5 {[%emt 0:07:41]} 14. Bxb4 {[%emt 0:09:28]} Nxb4 {[%emt 0:00:04]} 15. Bb1 {[%emt 0:00:26]} d3 {[%emt 0:07:07]} 16. Nc3 {[%emt 0:02:48]} Nc5 {[%emt 0:05:45]} 17. Re5 {[%emt 0:00:13]} b6 {[%emt 0:01:12]} 18. a3 {[%emt 0:02:03]} Nc2 {[%emt 0:01:45]} 19. Rd5 {[%emt 0:01:58]} Qf6 {[%emt 0:02:27]} 20. Ne4 {[%emt 0:18:47]} Nxe4 {[%emt 0:04:20]} 21. Qxd3 {[%emt 0:00:22]} Nxa1 {[%emt 0:02:43]} 22. Qxe4 {[%emt 0:01:10]} g6 {[%emt 0:00:13]} 23. Qb4 {[%emt 0:07:13]} Be6 {[%emt 0:01:13]} 24. Re5 {[%emt 0:01:03]} Rac8 {[%emt 0:01:06]} 25. h4 {[%emt 0:00:26]} Rc1+ {[%emt 0:00:21]} 26. Kh2 {[%emt 0:00:15]} Rxb1 {[%emt 0:00:19]} 0-1

[Event "FIDE WSTC Open 50 2025"]
[Site "Prague"]
[Date "2025.02.23"]
[Round "6.26"]
[White "Dahl, Fredrik A"]
[Black "Zvara, Petr"]
[Result "0-1"]
[Annotator "TA"]
[ECO "B13"]
[WhiteElo "2198"]
[BlackElo "2330"]
[PlyCount "74"]
[EventDate "2025.02.17"]
[EventType "team-tourn"]
[EventCountry "CZE"]
[SourceTitle "playchess.com"]
[Source "ChessBase"]
[SourceQuality "1"]
[TimeControl "40/5400+30:1800+30"]

{[%evp 14,74,29,16,20,23,17,22,16,14,13,0,9,0,7,0,0,0,0,-102,-97,-132,-133,-401,-400,-412,-288,-285,-272,-342,-189,-185,-202,-125,-17,0,42,37,41,63,77,70,62,-35,0,0,0,0,0,0,0,0,0,0,0,0,32,-25,-17,-46,-44,-1482,-1403]} 1. e4 {[%emt 0:00:04]} c6 {[%emt 0:00:08]} 2. d4 {[%emt 0:00:20]} d5 {[%emt 0:00:06]} 3. exd5 {[%emt 0:00:04]} cxd5 {[%emt 0:00:04]} 4. Bd3 {[%emt 0:00:07]} Nc6 {[%emt 0:00:33]} 5. c3 {[%emt 0:00:07]} Nf6 {[%emt 0:00:11]} 6. h3 {[%emt 0:00:27]} e5 {[%emt 0:01:07]} 7. dxe5 {[%emt 0:00:20]} Nxe5 {[%emt 0:00:05]} 8. Nf3 {[%emt 0:00:22]} Nxd3+ {[%emt 0:05:01] B13: Caro-Kann: Exchange Variation and Panov-Botvinnik Attack.} 9. Qxd3 {[%emt 0:00:08]} Bd6 $1 {[%emt 0:00:09] The main line 9...Bd6 scores better than 9...Be7.} 10. O-O {[%emt 0:00:20]} O-O {[%emt 0:00:03] The position is equal.} 11. Be3 {[%emt 0:00:47]} Be6 {[%emt 0:09:37]} 12. Nbd2 {[%emt 0:03:09]} Qd7 {[%emt 0:02:31]} 13. Rfe1 {[%emt 0:08:22]} (13. Bg5 {looks sharper.} Ne4 14. Nxe4 Bf5 15. Nc5) 13... Rfe8 {[%emt 0:04:22]} 14. Nd4 {[%emt 0:20:24]} Bxh3 {[%emt 0:33:31]} 15. gxh3 {[%emt 0:24:29]} Qxh3 {[%emt 0:00:17]} 16. N4f3 $146 {[%emt 0:00:56] Prevents Bh2+.} (16. Qf5 $1 $11 Qh2+ 17. Kf1) (16. N2f3 Ng4 17. Qf5 Bh2+ 18. Nxh2 Qxh2+ 19. Kf1 Qh3+ 20. Ke2 Rxe3+ 21. fxe3 Qxe3+ 22. Kd1 Nf2+ 23. Kc2 Qg3 24. Rf1 {1-0 Baches Garcia,G (2326)-Zaloznyy,M (2268) Titled Tuesday intern op 06th Sep Early blitz 2022 (8)}) 16... Ne4 $1 $17 {[%emt 0:03:37][%mdl 1024] Black has strong compensation.} 17. Qf1 {[%emt 0:01:41]} Qh5 {[%emt 0:00:52] Black has more active pieces.} 18. Qd3 $2 {[%emt 0:06:09][%mdl 8192]} (18. Qg2 $17 {was called for.} Re6 19. Ng5 Nxg5 20. Bxg5) 18... Re6 $19 {[%emt 0:08:55]} 19. Kf1 {[%emt 0:02:04]} Rae8 {[%emt 0:07:57]} 20. Ng1 {[%emt 0:02:52]} Rg6 {[%emt 0:08:35]} 21. Ndf3 {[%emt 0:08:41]} Qg4 {[%emt 0:06:15]} (21... h6 $142 {...Bh2 is the strong threat.} 22. Rad1 (22. Bxa7 $2 Bh2 $19) 22... Qg4) 22. Qb5 {[%emt 0:12:54]} Re7 {[%emt 0:01:24]} 23. Ke2 {[%emt 0:02:09][%cal Oe2d1,Bf1e2,Be2d2,Bd2c2,Bc2b3][%mdl 32] [#]} Nxf2 {[%emt 0:00:21]} 24. Kd2 $11 {[%emt 0:00:16]} Bf4 {[%emt 0:02:28] Really sharp!} 25. Bxf4 $1 {[%emt 0:03:03]} Qxf4+ {[%emt 0:00:08]} 26. Kc2 {[%emt 0:00:06][%cal Ob5e8]} Qf5+ {[%emt 0:01:45]} 27. Kb3 {[%emt 0:00:19][%cal Ob5e8] White wants to mate with Qe8+!.} Ne4 {[%emt 0:00:15]} 28. Nd4 {[%emt 0:00:28]} ({White must play} 28. Nh4 $1 $14 Qd7 (28... Nd2+ $2 29. Ka3 $18) 29. Qxd7 Rb6+ 30. Qb5 Rxb5+ 31. Kc2) 28... Qh5 {[%emt 0:01:33]} 29. Kc2 $1 {[%emt 0:01:11]} Rg2+ $1 {[%emt 0:01:25]} 30. Re2 {[%emt 0:00:15]} Nd6 {[%emt 0:01:22]} 31. Qd3 {[%emt 0:00:48]} Rgxe2+ {[%emt 0:00:07]} 32. Ngxe2 {[%emt 0:00:13]} Nc4 {[%emt 0:00:05]} 33. Rg1 {[%emt 0:02:22]} Re3 {[%emt 0:00:11] Prevents Rg3} 34. Qd1 {[%emt 0:00:11]} ({But not} 34. Rxg7+ $2 Kxg7 (34... Kh8 $2 35. Nf4 $19) 35. Qd1 Qg6+ 36. Kc1 Rd3 $19) 34... Qe5 {[%emt 0:00:59]} 35. b3 {[%emt 0:01:16]} ({Better is} 35. Kb1 $1 $14) 35... Qe4+ {[%emt 0:00:22]} 36. Kc1 {[%emt 0:00:02]} Rd3 {[%emt 0:00:45]} 37. Qc2 $2 {[%emt 0:00:52][%mdl 8192]} (37. Qe1 $15 Ne5 38. Qf2) 37... Qe3+ {[%emt 0:00:07] Weighted Error Value: White=0.37/Black=0.19 (very precise)   Loses game:     	White=2     	---        Mistake:       	White=3     	Black=2      Inaccurate:     	White=1     	Black=3      OK:         	White=8     	Black=13     Best:        	White=3     	Black=1      Strong:       	White=2     	Black=2} 0-1

[Event "FIDE WSTC Open 50 2025"]
[Site "Prague"]
[Date "2025.02.23"]
[Round "6.27"]
[White "Konopka, Michal"]
[Black "Kirkebo, Carl Peter"]
[Result "1-0"]
[Annotator "RC"]
[ECO "E04"]
[WhiteElo "2326"]
[BlackElo "2148"]
[PlyCount "79"]
[EventDate "2025.02.17"]
[EventType "team-tourn"]
[EventCountry "CZE"]
[SourceTitle "playchess.com"]
[Source "ChessBase"]
[SourceQuality "1"]
[TimeControl "40/5400+30:1800+30"]

1. Nf3 {[%emt 0:00:02]} d5 {[%emt 0:00:21]} 2. d4 {[%emt 0:05:17]} Nf6 {[%emt 0:01:53]} 3. c4 {[%emt 0:01:12]} e6 {[%emt 0:00:28]} 4. g3 {[%emt 0:00:22]} dxc4 {[%emt 0:01:03]} 5. Bg2 {[%emt 0:00:35]} c5 {[%emt 0:01:30]} 6. O-O {[%emt 0:00:42]} Nc6 {[%emt 0:02:58]} 7. dxc5 {[%emt 0:09:35]} Qxd1 {[%emt 0:04:21]} 8. Rxd1 {[%emt 0:00:17]} Bxc5 {[%emt 0:01:07]} 9. Nbd2 {[%emt 0:02:34]} c3 {[%emt 0:04:01]} 10. bxc3 {[%emt 0:05:36]} O-O {[%emt 0:06:43]} 11. Nb3 {[%emt 0:03:20]} Be7 {[%emt 0:01:43]} 12. Bb2 {[%emt 0:02:44]} Bd7 {[%emt 0:05:11]} 13. Nfd4 {[%emt 0:08:09]} Nxd4 {[%emt 0:08:31]} 14. cxd4 {[%emt 0:14:15]} Rac8 {[%emt 0:20:10]} 15. Bxb7 {[%emt 0:14:41]} Rc2 {[%emt 0:00:48]} 16. Bc1 {[%emt 0:00:39]} Rxe2 {[%emt 0:03:52]} 17. Bd2 {[%emt 0:01:23]} Ne4 {[%emt 0:19:11]} 18. Bxe4 {[%emt 0:04:38]} Rxe4 {[%emt 0:00:10]} 19. f3 {[%emt 0:00:05]} Re2 {[%emt 0:00:47]} 20. Nc1 {[%emt 0:00:08]} Bb5 {[%emt 0:00:45]} 21. Rb1 {[%emt 0:04:18]} Ba6 {[%emt 0:03:47]} 22. Nxe2 {[%emt 0:00:29]} Bxe2 {[%emt 0:00:06]} 23. Rdc1 {[%emt 0:00:50]} Bxf3 {[%emt 0:00:58]} 24. Bb4 {[%emt 0:05:49]} Bf6 {[%emt 0:04:21]} 25. Kf2 {[%emt 0:10:56]} Be4 {[%emt 0:03:23]} 26. Bxf8 {[%emt 0:00:18]} Bxd4+ {[%emt 0:00:19]} 27. Ke2 {[%emt 0:00:04]} Kxf8 {[%emt 0:00:40]} 28. Rc8+ {[%emt 0:01:45]} Ke7 {[%emt 0:00:07]} 29. Rb4 {[%emt 0:00:32]} e5 {[%emt 0:00:21]} 30. Rc7+ {[%emt 0:00:34]} Ke6 {[%emt 0:01:19]} 31. Rxd4 {[%emt 0:01:04]} exd4 {[%emt 0:00:12]} 32. Rxa7 {[%emt 0:00:01]} g5 33. a4 {[%emt 0:00:30]} h5 {[%emt 0:01:00]} 34. a5 {[%emt 0:00:20]} f5 {[%emt 0:00:28]} 35. Rg7 {[%emt 0:00:56]} Kf6 {[%emt 0:03:45]} 36. Rd7 {[%emt 0:00:29]} Ke5 {[%emt 0:00:13]} 37. a6 {[%emt 0:00:11]} f4 {[%emt 0:00:14]} 38. Re7+ {[%emt 0:00:16]} Kf5 {[%emt 0:00:16]} 39. Rxe4 {[%emt 0:00:10]} Kxe4 {[%emt 0:00:05]} 40. a7 {[%emt 0:00:03]} 1-0